fUST/lending_fUST_20240822
["ID","MTS","AMOUNT","RATE_DAILY","PERIOD"]
[335536041,1724315447875,-1614.67699292,0.00019178,2]
[335536042,1724315447901,-32.2648,0.00019178,2]
[335536048,1724315571185,2460.36026079,9.907e-05,2]
[335536051,1724315586942,273.37336231,9.907e-05,2]
[335536053,1724315603627,273.37336231,9.907e-05,2]
[335536054,1724315619673,273.37336231,9.907e-05,2]
[335536055,1724315635229,273.37336231,9.907e-05,2]
[335536057,1724315651817,2128.46581613,9.907e-05,2]
[335536058,1724315661072,405.25008898,9.907e-05,2]
[335536060,1724315667336,273.37336231,9.907e-05,2]
[335536061,1724315682804,273.37336231,9.907e-05,2]
[335536062,1724315698905,273.37336231,9.907e-05,2]
[335536064,1724315729922,273.37336231,9.907e-05,2]
[335536066,1724315745390,546.74672462,9.907e-05,2]
[335536067,1724315749589,193.3219431,9.907e-05,2]
[335536068,1724315760924,273.37336231,9.907e-05,2]
[335536069,1724315791515,273.37336231,9.907e-05,2]
[335536070,1724315807484,273.37336231,9.907e-05,2]
[335536071,1724315823629,273.37336231,9.907e-05,2]
[335536073,1724315839049,273.37336231,9.907e-05,2]
[335536074,1724315839416,2148.39049301,9.907e-05,2]
[335536075,1724315855226,273.37336231,9.907e-05,2]
[335536076,1724315870589,273.37336231,9.907e-05,2]
[335536078,1724315885972,273.37336231,9.907e-05,2]
[335536079,1724315902632,273.37336231,9.907e-05,2]
[335536080,1724315918089,273.37336231,9.907e-05,2]
[335536081,1724315934098,273.37336231,9.907e-05,2]
[335536082,1724315949697,273.37336231,9.907e-05,2]
[335536083,1724315965305,273.37336231,9.907e-05,2]
[335536084,1724315980874,273.37336231,9.907e-05,2]
[335536085,1724315996253,273.37336231,9.907e-05,2]
[335536086,1724316013129,273.37336231,9.907e-05,2]
[335536089,1724316029059,273.37336231,9.907e-05,2]
[335536090,1724316044744,273.37336231,9.907e-05,2]
[335536091,1724316060631,273.37336231,9.907e-05,2]
[335536092,1724316076712,273.37336231,9.907e-05,2]
[335536093,1724316093773,273.37336231,9.907e-05,2]
[335536094,1724316109648,546.74672462,9.907e-05,2]
[335536095,1724316125817,273.37336231,9.907e-05,2]
[335536096,1724316141353,273.37336231,9.907e-05,2]
[335536097,1724316157314,273.37336231,9.907e-05,2]
[335536098,1724316173410,273.37336231,9.907e-05,2]
[335536099,1724316189095,273.37336231,9.907e-05,2]
[335536100,1724316204665,273.37336231,9.907e-05,2]
[335536102,1724316221692,273.37336231,9.907e-05,2]
[335536104,1724316237556,273.37336231,9.907e-05,2]
[335536105,1724316253102,273.37336231,9.907e-05,2]
[335536106,1724316268448,273.37336231,9.907e-05,2]
[335536107,1724316285684,273.37336231,9.907e-05,2]
[335536108,1724316301162,273.37336231,9.907e-05,2]
[335536109,1724316316619,273.37336231,9.907e-05,2]
[335536111,1724316332719,273.37336231,9.907e-05,2]
[335536112,1724316364059,273.37336231,9.907e-05,2]
[335536113,1724316380811,273.37336231,9.907e-05,2]
[335536114,1724316396269,273.37336231,9.907e-05,2]
[335536117,1724316413255,273.37336231,9.907e-05,2]
[335536120,1724316429612,273.37336231,9.907e-05,2]
[335536121,1724316445720,273.37336231,9.907e-05,2]
[335536122,1724316461193,273.37336231,9.907e-05,2]
[335536123,1724316478233,273.37336231,9.907e-05,2]
[335536124,1724316494241,273.37336231,9.907e-05,2]
[335536125,1724316510189,273.37336231,9.907e-05,2]
[335536126,1724316525575,273.37336231,9.907e-05,2]
[335536128,1724316541009,151.88457403,9.907e-05,2]
[335536129,1724316575140,500.0,9.9e-05,2]
[335536130,1724316575509,500.0,9.9e-05,2]
[335536131,1724316576033,500.0,9.9e-05,2]
[335536132,1724316576283,500.0,9.9e-05,2]
[335536133,1724316576652,500.0,9.9e-05,2]
[335536134,1724316577685,500.0,9.9e-05,2]
[335536136,1724316578341,500.0,9.9e-05,2]
[335536137,1724316578545,500.0,9.9e-05,2]
[335536138,1724316578943,500.0,9.9e-05,2]
[335536139,1724316579431,500.0,9.9e-05,2]
[335536140,1724316579832,500.0,9.9e-05,2]
[335536141,1724316580257,500.0,9.9e-05,2]
[335536142,1724316580676,500.0,9.9e-05,2]
[335536143,1724316581178,354.74330037,9.9e-05,2]
[335536172,1724316632433,-264.6179422,9.939e-05,2]
[335536548,1724316638328,-37587.49568139,9.939e-05,2]
[335536550,1724316638340,-913.79145382,9.939e-05,2]
[335536552,1724316638351,-560.85992807,9.939e-05,2]
[335536553,1724316638360,-674.88273364,9.981e-05,2]
[335536554,1724316638370,-300.0,0.0001008,2]
[335536555,1724316638379,-400.0,0.000101,2]
[335536556,1724316638388,-817.42780859,0.00010544,2]
[335536557,1724316638397,-106.00917325,0.000106,2]
[335536633,1724316639134,-393.99082675,0.000106,2]
[335536635,1724316639144,-1718.57832739,0.00010958,2]
[335536637,1724316639154,-323.12,0.00010959,2]
[335536639,1724316639164,-420.0,0.00011089,2]
[335536641,1724316639173,-1000.0,0.00011148,2]
[335536643,1724316639182,-12931.0584265,0.00011612,2]
[335536645,1724316639192,-188.34866886,0.00011731,2]
[335536647,1724316639201,-9662.24242138,0.00011731,2]
[335536649,1724316639210,-2141.83182523,0.00011731,2]
[335536651,1724316639219,-372.93180279,0.00011842,2]
[335536653,1724316639228,-154.76012181,0.00011842,2]
[335536655,1724316639237,-210.23989812,0.00011842,2]
[335536657,1724316639246,-315.96864763,0.00011842,2]
[335536659,1724316639257,-729.00961912,0.00011842,2]
[335536661,1724316639266,-933.89722372,0.00011894,2]
[335536663,1724316639275,-780.88884995,0.00011894,2]
[335536665,1724316639284,-187.27888222,0.00011894,2]
[335536667,1724316639294,-1023.33199145,0.00011894,2]
[335536669,1724316639303,-422.1184028,0.00011894,2]
[335536671,1724316639311,-306.40936062,0.00011894,2]
[335536673,1724316639322,-154.76012181,0.00012008,2]
[335536675,1724316639331,-328.94907861,0.00012046,2]
[335536677,1724316639342,-1171.05092139,0.00012046,2]
[335536679,1724316639352,-587.0,0.00012197,2]
[335536681,1724316639361,-2596.46414643,0.00012516,2]
[335536683,1724316639370,-2596.46414643,0.00012516,2]
[335536685,1724316639379,-158.933937,0.00012866,2]
[335536687,1724316639388,-223.40672649,0.00012898,2]
[335536689,1724316639398,-493.30764145,0.0001295,2]
[335536691,1724316639407,-186.98704903,0.00012991,2]
[335536693,1724316639416,-862.44048895,0.00013,2]
[335536695,1724316639424,-158.933937,0.00013033,2]
[335536697,1724316639434,-1544.98922732,0.00013151,2]
[335536699,1724316639444,-158.933937,0.00013201,2]
[335536701,1724316639453,-411.0361452,0.00013226,2]
[335536703,1724316639463,-158.933937,0.00013369,2]
[335536705,1724316639472,-555.0,0.00013417,2]
[335536707,1724316639482,-158.933937,0.00013536,2]
[335536709,1724316639491,-234.961661,0.00013699,2]
[335536711,1724316639500,-3000.0,0.00013699,2]
[335536713,1724316639510,-194.82337617,0.00013699,2]
[335536715,1724316639520,-408.442405,0.00014247,2]
[335536717,1724316639530,-168.677021,0.00014247,2]
[335536719,1724316639540,-210.14248726,0.000149,2]
[335536721,1724316639549,-5336.60999822,0.00016854,2]
[335536723,1724316639558,-1000.0,0.00017,17]
[335536726,1724316639567,-5336.60999822,0.00017112,2]
[335536727,1724316639577,-150.0,0.00017313,2]
[335536730,1724316639586,-5336.60999822,0.00017395,2]
[335536732,1724316639595,-62685.0985396,0.00017417,2]
[335536734,1724316639604,-150.0,0.00017648,2]
[335536736,1724316639614,-5336.60999822,0.00017718,2]
[335536738,1724316639623,-150.0,0.00017818,2]
[335536740,1724316639633,-803.40611987,0.00017833,2]
[335536742,1724316639642,-5336.60999822,0.00017919,2]
[335536744,1724316639651,-154.76012181,0.00018,2]
[335536746,1724316639660,-1000.0,0.00018,18]
[335536747,1724316639669,-154.76012181,0.00018081,2]
[335536749,1724316639678,-5336.60999822,0.00018168,2]
[335536751,1724316639687,-329.0775841,0.00018241,2]
[335536753,1724316639696,-2000.0,0.00018267,2]
[335536755,1724316639710,-150.112237,0.000183,2]
[335536757,1724316639719,-150.0,0.00018307,2]
[335536759,1724316639728,-5336.60999822,0.00018364,2]
[335536761,1724316639737,-409.12482,0.00018378,2]
[335536763,1724316639747,-207.6636928,0.00018378,2]
[335536765,1724316639755,-207.6636928,0.00018378,2]
[335536767,1724316639765,-409.12482,0.00018378,2]
[335536768,1724316639774,-409.12482,0.00018378,2]
[335536769,1724316639784,-207.6636928,0.00018378,2]
[335536770,1724316639793,-409.12482,0.00018378,2]
[335536771,1724316639803,-409.12482,0.00018378,2]
[335536772,1724316639811,-409.12482,0.00018378,2]
[335536773,1724316639820,-207.6636928,0.00018378,2]
[335536774,1724316639830,-207.6636928,0.00018478,2]
[335536775,1724316639839,-207.6636928,0.00018478,2]
[335536776,1724316639848,-207.6636928,0.00018478,2]
[335536777,1724316639857,-409.12482,0.00018478,2]
[335536778,1724316639866,-409.12482,0.00018478,2]
[335536779,1724316639876,-150.112233,0.000185,2]
[335536781,1724316639885,-374.88405,0.00018521,2]
[335536784,1724316639895,-150.0,0.00018594,2]
[335536786,1724316639904,-2640.95997503,0.00018647,2]
[335536788,1724316639914,-150.112233,0.000187,2]
[335536790,1724316639923,-481.92030599,0.00018724,2]
[335536792,1724316639932,-5336.60999822,0.00018827,2]
[335536794,1724316639941,-290.93966491,0.00018872,2]
[335536796,1724316639951,-150.112233,0.000189,2]
[335536798,1724316639960,-150.112233,0.00019,2]
[335536800,1724316639970,-13864.13966765,0.00019,2]
[335536802,1724316639979,-1000.0,0.00019,19]
[335536804,1724316639987,-62685.0985396,0.00019057,2]
[335536805,1724316639996,-500.0,0.00019057,2]
[335536807,1724316640006,-500.0,0.00019057,2]
[335536809,1724316640015,-301.92993025,0.00019057,2]
[335536811,1724316640024,-651.17320028,0.00019057,2]
[335536813,1724316640034,-500.0,0.00019057,2]
[335536815,1724316640043,-500.0,0.00019057,2]
[335536817,1724316640052,-500.0,0.00019057,2]
[335536819,1724316640062,-528.28987511,0.00019057,2]
[335536821,1724316640071,-500.0,0.00019057,2]
[335536823,1724316640080,-500.0,0.00019057,2]
[335536825,1724316640090,-500.0,0.00019057,2]
[335536827,1724316640099,-500.0,0.00019057,2]
[335536829,1724316640108,-500.0,0.00019057,2]
[335536831,1724316640117,-500.0,0.00019057,2]
[335536833,1724316640126,-500.0,0.00019057,2]
[335536835,1724316640136,-500.0,0.00019057,2]
[335536837,1724316640146,-228.27838834,0.00019057,2]
[335536839,1724316640155,-155.82124019,0.00019057,2]
[335536841,1724316640165,-500.0,0.00019057,2]
[335536843,1724316640174,-169.14610846,0.00019057,2]
[335536845,1724316640183,-500.0,0.00019057,2]
[335536847,1724316640192,-500.0,0.00019057,2]
[335536849,1724316640202,-500.0,0.00019057,2]
[335536851,1724316640212,-500.0,0.00019057,2]
[335536853,1724316640221,-500.0,0.00019057,2]
[335536855,1724316640230,-500.0,0.00019057,2]
[335536857,1724316640239,-125370.197079,0.00019058,2]
[335536859,1724316640248,-10946.4206435,0.00019068,2]
[335536861,1724316640262,-88888.0,0.00019068,2]
[335536863,1724316640274,-2158.50743378,0.00019072,2]
[335536865,1724316640284,-500.0,0.00019073,2]
[335536867,1724316640293,-500.0,0.00019073,2]
[335536869,1724316640302,-500.0,0.00019073,2]
[335536870,1724316640312,-401.59927569,0.00019073,2]
[335536872,1724316640322,-200.27206118,0.00019073,2]
[335536874,1724316640331,-500.0,0.00019073,2]
[335536877,1724316640340,-150.112233,0.000191,2]
[335536878,1724316640350,-160.205676,0.000191,2]
[335536880,1724316640359,-5336.60999828,0.00019149,2]
[335536883,1724316640368,-62685.0985396,0.00019168,2]
[335536884,1724316640377,-1013.01840787,0.00019172,2]
[335536886,1724316640386,-1672.36760276,0.00019178,2]
[335536888,1724316640395,-502.18946978,0.00019178,2]
[335536890,1724316640404,-500.0,0.00019178,2]
[335536892,1724316640413,-500.0,0.00019178,2]
[335536894,1724316640423,-500.0,0.00019178,2]
[335536896,1724316640432,-500.0,0.00019178,2]
[335536898,1724316640442,-500.0,0.00019178,2]
[335536900,1724316640451,-500.0,0.00019178,2]
[335536902,1724316640460,-500.0,0.00019178,2]
[335536904,1724316640470,-500.0,0.00019178,2]
[335536906,1724316640478,-500.0,0.00019178,2]
[335536908,1724316640487,-500.0,0.00019178,2]
[335536910,1724316640496,-500.0,0.00019178,2]
[335536912,1724316640508,-500.0,0.00019178,2]
[335536914,1724316640521,-503.24036941,0.00019178,2]
[335536916,1724316640530,-501.51235908,0.00019178,2]
[335536918,1724316640539,-501.91963633,0.00019178,2]
[335536920,1724316640548,-500.0,0.00019178,2]
[335536922,1724316640558,-500.0,0.00019178,2]
[335536924,1724316640567,-500.0,0.00019178,2]
[335536926,1724316640576,-500.47628411,0.00019178,2]
[335536928,1724316640585,-500.0,0.00019178,2]
[335536930,1724316640594,-500.0,0.00019178,2]
[335536932,1724316640603,-160.11384194,0.00019178,2]
[335536934,1724316640611,-507.26586184,0.00019178,2]
[335536936,1724316640621,-503.25808277,0.00019178,2]
[335536938,1724316640630,-500.0,0.00019178,2]
[335536940,1724316640639,-500.0,0.00019178,2]
[335536942,1724316640649,-528.85674426,0.00019178,2]
[335536944,1724316640658,-500.0,0.00019178,2]
[335536946,1724316640667,-500.0,0.00019178,2]
[335536948,1724316640676,-500.0,0.00019178,2]
[335536950,1724316640685,-500.0,0.00019178,2]
[335536970,1724316640879,-500.0,0.00019178,2]
[335536973,1724316640889,-511.01767285,0.00019178,2]
[335536975,1724316640899,-500.0,0.00019178,2]
[335536976,1724316640909,-558.13,0.00019178,2]
[335536978,1724316640918,-500.0,0.00019178,2]
[335536980,1724316640927,-500.0,0.00019178,2]
[335536982,1724316640936,-500.0,0.00019178,2]
[335536984,1724316640946,-500.0,0.00019178,2]
[335536986,1724316640955,-500.0,0.00019178,2]
[335536988,1724316640964,-500.0,0.00019178,2]
[335536990,1724316640973,-500.0,0.00019178,2]
[335536992,1724316640982,-500.0,0.00019178,2]
[335536994,1724316640991,-500.0,0.00019178,2]
[335536996,1724316641001,-500.0,0.00019178,2]
[335536998,1724316641011,-500.0,0.00019178,2]
[335537000,1724316641020,-586.53658666,0.00019178,2]
[335537002,1724316641029,-519.76162396,0.00019178,2]
[335537004,1724316641039,-503.10008164,0.00019178,2]
[335537006,1724316641048,-500.0,0.00019178,2]
[335537008,1724316641057,-500.0,0.00019178,2]
[335537010,1724316641066,-500.0,0.00019178,2]
[335537012,1724316641075,-500.0,0.00019178,2]
[335537014,1724316641085,-500.0,0.00019178,2]
[335537016,1724316641094,-500.0,0.00019178,2]
[335537018,1724316641103,-500.0,0.00019178,2]
[335537020,1724316641112,-500.0,0.00019178,2]
[335537022,1724316641121,-525.71,0.00019178,2]
[335537024,1724316641130,-500.0,0.00019178,2]
[335537026,1724316641139,-500.0,0.00019178,2]
[335537028,1724316641149,-500.0,0.00019178,2]
[335537030,1724316641158,-500.0,0.00019178,2]
[335537032,1724316641167,-500.0,0.00019178,2]
[335537034,1724316641176,-500.0,0.00019178,2]
[335537036,1724316641186,-500.0,0.00019178,2]
[335537038,1724316641195,-500.0,0.00019178,2]
[335537040,1724316641205,-522.45373694,0.00019178,2]
[335537042,1724316641214,-500.0,0.00019178,2]
[335537044,1724316641223,-500.0,0.00019178,2]
[335537046,1724316641231,-500.0,0.00019178,2]
[335537048,1724316641240,-500.0,0.00019178,2]
[335537050,1724316641250,-727.94,0.00019178,2]
[335537052,1724316641259,-500.0,0.00019178,2]
[335537054,1724316641268,-500.0,0.00019178,2]
[335537056,1724316641278,-500.0,0.00019178,2]
[335537058,1724316641287,-500.0,0.00019178,2]
[335537060,1724316641295,-500.0,0.00019178,2]
[335537062,1724316641305,-500.0,0.00019178,2]
[335537063,1724316641314,-500.0,0.00019178,2]
[335537066,1724316641323,-500.0,0.00019178,2]
[335537067,1724316641332,-350.0,0.00019178,2]
[335537069,1724316641342,-582.72,0.00019178,2]
[335537072,1724316641352,-500.0,0.00019178,2]
[335537073,1724316641361,-500.0,0.00019178,2]
[335537075,1724316641370,-500.0,0.00019178,2]
[335537078,1724316641380,-207.08036975,0.00019178,2]
[335537080,1724316641389,-500.0,0.00019178,2]
[335537082,1724316641399,-500.0,0.00019178,2]
[335537084,1724316641408,-500.0,0.00019178,2]
[335537086,1724316641418,-500.0,0.00019178,2]
[335537088,1724316641427,-500.0,0.00019178,2]
[335537090,1724316641436,-960.82,0.00019178,2]
[335537092,1724316641445,-500.0,0.00019178,2]
[335537094,1724316641454,-500.0,0.00019178,2]
[335537096,1724316641463,-500.0,0.00019178,2]
[335537098,1724316641472,-500.0,0.00019178,2]
[335537100,1724316641481,-500.0,0.00019178,2]
[335537102,1724316641490,-500.0,0.00019178,2]
[335537104,1724316641499,-500.0,0.00019178,2]
[335537106,1724316641509,-500.0,0.00019178,2]
[335537107,1724316641518,-606.16,0.00019178,2]
[335537109,1724316641527,-500.0,0.00019178,2]
[335537111,1724316641536,-500.0,0.00019178,2]
[335537113,1724316641545,-500.0,0.00019178,2]
[335537115,1724316641555,-369.16940607,0.00019178,2]
[335537117,1724316641564,-500.0,0.00019178,2]
[335537119,1724316641573,-500.0,0.00019178,2]
[335537121,1724316641582,-500.0,0.00019178,2]
[335537123,1724316641592,-500.0,0.00019178,2]
[335537125,1724316641602,-500.0,0.00019178,2]
[335537127,1724316641611,-500.0,0.00019178,2]
[335537129,1724316641621,-500.0,0.00019178,2]
[335537131,1724316641630,-515.6754811,0.00019178,2]
[335537133,1724316641640,-500.0,0.00019178,2]
[335537135,1724316641649,-500.0,0.00019178,2]
[335537137,1724316641658,-500.0,0.00019178,2]
[335537139,1724316641667,-500.0,0.00019178,2]
[335537141,1724316641677,-500.0,0.00019178,2]
[335537143,1724316641686,-1203.56,0.00019178,2]
[335537145,1724316641695,-500.0,0.00019178,2]
[335537147,1724316641709,-500.0,0.00019178,2]
[335537149,1724316641717,-572.2,0.00019178,2]
[335537151,1724316641727,-763.72,0.00019178,2]
[335537153,1724316641735,-500.0,0.00019178,2]
[335537155,1724316641745,-500.0,0.00019178,2]
[335537157,1724316641755,-500.0,0.00019178,2]
[335537159,1724316641764,-515.05237798,0.00019178,2]
[335537161,1724316641773,-500.0,0.00019178,2]
[335537163,1724316641782,-500.0,0.00019178,2]
[335537165,1724316641791,-500.0,0.00019178,2]
[335537167,1724316641800,-500.0,0.00019178,2]
[335537169,1724316641809,-500.0,0.00019178,2]
[335537170,1724316641818,-500.0,0.00019178,2]
[335537172,1724316641827,-500.0,0.00019178,2]
[335537174,1724316641836,-500.0,0.00019178,2]
[335537176,1724316641846,-500.0,0.00019178,2]
[335537178,1724316641855,-500.0,0.00019178,2]
[335537180,1724316641864,-500.0,0.00019178,2]
[335537182,1724316641873,-500.0,0.00019178,2]
[335537184,1724316641883,-509.76210278,0.00019178,2]
[335537186,1724316641892,-500.0,0.00019178,2]
[335537188,1724316641901,-500.0,0.00019178,2]
[335537190,1724316641910,-500.0,0.00019178,2]
[335537192,1724316641919,-500.0,0.00019178,2]
[335537194,1724316641928,-500.0,0.00019178,2]
[335537196,1724316641937,-500.0,0.00019178,2]
[335537198,1724316641946,-500.0,0.00019178,2]
[335537200,1724316641955,-500.0,0.00019178,2]
[335537202,1724316641964,-414.41567858,0.00019178,2]
[335537203,1724316641973,-500.0,0.00019178,2]
[335537205,1724316641983,-500.0,0.00019178,2]
[335537207,1724316641992,-500.0,0.00019178,2]
[335537209,1724316642001,-500.0,0.00019178,2]
[335537211,1724316642011,-500.0,0.00019178,2]
[335537213,1724316642020,-500.0,0.00019178,2]
[335537215,1724316642029,-500.0,0.00019178,2]
[335537217,1724316642038,-500.0,0.00019178,2]
[335537219,1724316642047,-500.0,0.00019178,2]
[335537221,1724316642056,-414.54414726,0.00019178,2]
[335537223,1724316642064,-500.0,0.00019178,2]
[335537225,1724316642074,-500.0,0.00019178,2]
[335537227,1724316642082,-500.74606333,0.00019178,2]
[335537229,1724316642091,-500.0,0.00019178,2]
[335537231,1724316642100,-500.0,0.00019178,2]
[335537233,1724316642109,-626.8,0.00019178,2]
[335537235,1724316642118,-2321.68,0.00019178,2]
[335537237,1724316642127,-512.56163502,0.00019178,2]
[335537239,1724316642136,-501.04921057,0.00019178,2]
[335537241,1724316642145,-500.0,0.00019178,2]
[335537242,1724316642154,-500.0,0.00019178,2]
[335537245,1724316642163,-500.0,0.00019178,2]
[335537246,1724316642172,-500.0,0.00019178,2]
[335537248,1724316642181,-685.17,0.00019178,2]
[335537250,1724316642190,-500.0,0.00019178,2]
[335537252,1724316642199,-500.0,0.00019178,2]
[335537255,1724316642209,-500.0,0.00019178,2]
[335537257,1724316642217,-500.0,0.00019178,2]
[335537258,1724316642226,-500.0,0.00019178,2]
[335537260,1724316642235,-500.0,0.00019178,2]
[335537262,1724316642245,-500.0,0.00019178,2]
[335537264,1724316642255,-500.0,0.00019178,2]
[335537265,1724316642264,-508.03842229,0.00019178,2]
[335537266,1724316642273,-500.0,0.00019178,2]
[335537267,1724316642282,-500.0,0.00019178,2]
[335537268,1724316642291,-500.0,0.00019178,2]
[335537269,1724316642300,-500.0,0.00019178,2]
[335537270,1724316642308,-500.0,0.00019178,2]
[335537271,1724316642317,-94.90247862,0.00019178,2]
[335537319,1724316642794,-405.09752138,0.00019178,2]
[335537321,1724316642803,-500.0,0.00019178,2]
[335537323,1724316642812,-500.0,0.00019178,2]
[335537325,1724316642821,-171.36514737,0.00019178,2]
[335537327,1724316642830,-508.56,0.00019178,2]
[335537329,1724316642839,-508.56,0.00019178,2]
[335537331,1724316642848,-508.56,0.00019178,2]
[335537333,1724316642858,-508.56,0.00019178,2]
[335537335,1724316642867,-508.56,0.00019178,2]
[335537337,1724316642876,-508.56,0.00019178,2]
[335537339,1724316642885,-508.56,0.00019178,2]
[335537341,1724316642895,-500.0,0.00019178,2]
[335537343,1724316642903,-508.56,0.00019178,2]
[335537345,1724316642913,-508.56,0.00019178,2]
[335537347,1724316642923,-508.56,0.00019178,2]
[335537349,1724316642932,-505.79918617,0.00019178,2]
[335537351,1724316642941,-508.56,0.00019178,2]
[335537353,1724316642951,-508.56,0.00019178,2]
[335537355,1724316642960,-508.56,0.00019178,2]
[335537357,1724316642970,-500.0,0.00019178,2]
[335537359,1724316642979,-508.56,0.00019178,2]
[335537362,1724316642988,-508.56,0.00019178,2]
[335537365,1724316642997,-512.02972142,0.00019178,2]
[335537368,1724316643006,-508.56,0.00019178,2]
[335537371,1724316643016,-508.56,0.00019178,2]
[335537374,1724316643025,-508.56,0.00019178,2]
[335537377,1724316643034,-508.56,0.00019178,2]
[335537379,1724316643043,-508.56,0.00019178,2]
[335537381,1724316643052,-508.56,0.00019178,2]
[335537383,1724316643062,-508.56,0.00019178,2]
[335537385,1724316643071,-508.56,0.00019178,2]
[335537387,1724316643080,-508.756219,0.00019178,2]
[335537389,1724316643089,-261.19666928,0.00019178,2]
[335537391,1724316643099,-501.0832935,0.00019178,2]
[335537393,1724316643108,-500.0,0.00019178,2]
[335537395,1724316643116,-500.0,0.00019178,2]
[335537397,1724316643125,-500.0,0.00019178,2]
[335537399,1724316643135,-500.0,0.00019178,2]
[335537401,1724316643144,-500.0,0.00019178,2]
[335537403,1724316643153,-503.46782841,0.00019178,2]
[335537405,1724316643162,-500.0,0.00019178,2]
[335537407,1724316643171,-500.0,0.00019178,2]
[335537409,1724316643181,-500.0,0.00019178,2]
[335537411,1724316643189,-500.0,0.00019178,2]
[335537413,1724316643198,-500.0,0.00019178,2]
[335537415,1724316643208,-500.0,0.00019178,2]
[335537417,1724316643216,-500.0,0.00019178,2]
[335537419,1724316643225,-500.0,0.00019178,2]
[335537421,1724316643235,-500.0,0.00019178,2]
[335537422,1724316643244,-500.0,0.00019178,2]
[335537424,1724316643254,-501.87366289,0.00019178,2]
[335537426,1724316643263,-500.0,0.00019178,2]
[335537428,1724316643272,-500.0,0.00019178,2]
[335537430,1724316643282,-500.0,0.00019178,2]
[335537432,1724316643291,-500.0,0.00019178,2]
[335537434,1724316643300,-500.0,0.00019178,2]
[335537436,1724316643309,-500.0,0.00019178,2]
[335537438,1724316643318,-500.0,0.00019178,2]
[335537440,1724316643327,-500.0,0.00019178,2]
[335537442,1724316643336,-500.0,0.00019178,2]
[335537444,1724316643346,-500.0,0.00019178,2]
[335537446,1724316643355,-500.0,0.00019178,2]
[335537448,1724316643364,-500.0,0.00019178,2]
[335537450,1724316643373,-500.0,0.00019178,2]
[335537452,1724316643383,-500.0,0.00019178,2]
[335537454,1724316643392,-500.0,0.00019178,2]
[335537456,1724316643402,-500.0,0.00019178,2]
[335537458,1724316643411,-500.0,0.00019178,2]
[335537459,1724316643420,-500.0,0.00019178,2]
[335537461,1724316643429,-519.64591166,0.00019178,2]
[335537463,1724316643438,-500.0,0.00019178,2]
[335537465,1724316643447,-500.0,0.00019178,2]
[335537466,1724316643456,-500.90486467,0.00019178,2]
[335537468,1724316643465,-500.0,0.00019178,2]
[335537470,1724316643474,-1886.61,0.00019178,2]
[335537471,1724316643484,-277.9559051,0.00019178,2]
[335537473,1724316643493,-500.0,0.00019178,2]
[335537475,1724316643503,-500.0,0.00019178,2]
[335537477,1724316643518,-500.0,0.00019178,2]
[335537478,1724316643530,-515.19,0.00019178,2]
[335537480,1724316643539,-500.0,0.00019178,2]
[335537482,1724316643549,-500.0,0.00019178,2]
[335537483,1724316643558,-1475.8,0.00019178,2]
[335537485,1724316643567,-500.0,0.00019178,2]
[335537487,1724316643576,-500.0,0.00019178,2]
[335537489,1724316643585,-520.58,0.00019178,2]
[335537490,1724316643595,-500.0,0.00019178,2]
[335537492,1724316643604,-309.14983794,0.00019178,2]
[335537494,1724316643612,-834.79,0.00019178,2]
[335537495,1724316643622,-500.0,0.00019178,2]